Cogmind - Beta 17.1 @@@ ROGUE MODE // 2026.08.27 @ 11:45:16 Player: SunShine214 Result: Core destroyed Performance ------------- Evolutions (0) 0 Regions Visited (1) 200 Robots Destroyed (16) 80 Value Destroyed (305) 305 Prototype IDs (1) 20 Alien Tech Used (0) 0 Bonus (6600) 6600 TOTAL SCORE: 7205 Bonus ------- Prayed to X0-1V1 5000 Major X0-1V1 Interference 1600 Cogmind --------- Core Integrity 0/200 Matter 302/800 Energy 100/100 System Corruption 19% Temperature Cool (0) Movement Core (250) Ox4 Location -10/Materials Parts ------- > --- POWER (2) -------- (None) > --- PROPULSION (1) --- (None) > --- UTILITY (2) ------ Medium Storage Unit > --- WEAPON (2) ------- Shotgun > --- INVENTORY (10) --- Light Treads Light Treads Cooling System Light Armor Plating Light EM Pulse Cannon Mini Grenade Launcher Mini Grenade Launcher Mini Grenade Launcher Mining Laser Peak State ------------ > --- POWER ------------ Light Ion Engine > --- PROPULSION ------- Light Treads Light Treads > --- UTILITY ---------- Medium Storage Unit X0-1V1's Piety Tracker > --- WEAPON ----------- Light EM Pulse Cannon Light EM Pulse Cannon > --- INVENTORY -------- Light Treads Light Armor Plating Light EM Pulse Cannon Mini Grenade Launcher Mini Grenade Launcher Mini Grenade Launcher Mining Laser [Rating: 22] Favorites ----------- Power Light Ion Engine Engine Light Ion Engine Propulsion Light Treads Treads Light Treads Utility Medium Storage Unit Device Seismic Detector Storage Medium Storage Unit Weapon Light Assault Rifle Energy Gun EM Pulse Gun Energy Cannon Light EM Pulse Cannon Ballistic Gun Light Assault Rifle Build | -11 -10 ------- Run | Yrd Mat Slots Evolved . | . . Power . | . . Propulsion . | . . Utility . | . . Weapon . | . . Parts Attached 13 | 8 5 Power 1 | 1 . Engine 1 | 1 . Core . | . . Reactor . | . . Propulsion 2 | 2 . Treads 2 | 2 . Leg . | . . Wheel . | . . Hover . | . . Flight . | . . Utility 4 | 2 2 Device 2 | 1 1 Storage 2 | 1 1 Processor . | . . Hackware . | . . Protection . | . . Artifact . | . . Weapon 6 | 3 3 Energy Gun 2 | 2 . Energy Cannon 2 | . 2 Ballistic Gun 2 | 1 1 Ballistic Cannon . | . . Launcher . | . . Special Weapon . | . . Impact Weapon . | . . Slashing Weapon . | . . Piercing Weapon . | . . Special Melee Weapon . | . . Unidentified Prototypes 1 | . 1 Parts Lost 4 | . 4 Power 1 | . 1 Propulsion 1 | . 1 Utility 1 | . 1 Weapon 1 | . 1 Highest Loss Streak 4 | . 4 To Critical Strikes . | . . Average Backups 3 | . 4 Power . | . . Propulsion . | . . Utility . | . 1 Weapon 1 | . 2 Tool/Special . | . . Unused Backups 8 | . 8 Power . | . . Propulsion 1 | . 1 Utility 2 | . 2 Weapon 5 | . 5 Tool/Special . | . . Average Slot Usage (%) 94 | . 94 Engine 13 | . 13 Treads 23 | . 23 Device 14 | . 14 Storage 14 | . 14 Energy Gun 9 | . 9 Energy Cannon 7 | . 7 Ballistic Gun 10 | . 10 Peak Build Rating 22 | 7 22 Average Rating 10 | 5 12 On Entrance 3 | . 7 Avg Prop Armor Cover (%) . | . . Naked Turns . | . . Heaviest Build 22 | 12 22 Greatest Support 40 | 40 40 Greatest Overweight (x) 5 | . 5 Average Overweight (x) . | . . Largest Inventory Capacity 10 | 8 10 Average Capacity 9 | 7 9 Most Carried 9 | 1 9 Average Carried 3 | . 4 Final Capacity 10 | 8 10 Final Carried 9 | 1 9 Class Distribution -------------------- 100% | Mutant Dominant Class ---------------- Mutant | -10/Materials Resources | -11 -10 ----------- Run | Yrd Mat Matter Collected 360 | 297 63 Remotely . | . . Salvage Created 569 | 160 409 Parts 34 | 8 26 Haulers Intercepted 1 | . 1 Recyclers Shooed . | . . Parts Field Recycled . | . . Retrieved Matter . | . . Parts Self-Destructed . | . . Prevented . | . . Parts Restored . | . . Kills | -11 -10 ------- Run | Yrd Mat Combat Hostiles Destroyed 7 | . 7 Guns 5 | . 5 AOE 2 | . 2 Classes Destroyed 6 | 2 4 Worker 2 | . 2 Tunneler 4 | 4 . Hauler 1 | . 1 Recycler 1 | 1 . Operator 1 | . 1 Grunt 7 | . 7 Best Kill Streak 5 | 2 5 Combat Bots Only 2 | . 2 Max Kills in Single Turn 3 | 1 3 Gunslinging . | . . Exploded 2 | . 2 Melee . | . . Uniques/NPCs Destroyed . | . . Combat | -11 -10 -------- Run | Yrd Mat Hostile Shots Fired 113 | . 113 Missed 31 | . 31 Hits 82 | . 82 Projectile 82 | . 82 Damage Taken 846 | 40 806 Core 213 | . 213 Absorbed by Shields . | . . Core Remaining (%) 100 | 100 . Volleys Fired 47 | 17 30 Largest 2 | 2 2 Hottest 112 | 60 112 Shots Fired 94 | 34 60 Gun 89 | 34 55 Cannon 5 | . 5 Launcher . | . . Special . | . . Kinetic 45 | 17 28 Thermal . | . . Explosive . | . . Electromagnetic 49 | 17 32 Robot Hit Streak 6 | 5 6 Robot Miss Streak 5 | 4 5 Penetration Max . | . . Secondary Targets . | . . Shots Hit Robots 50 | 17 33 Core Hits 22 | 6 16 Critical Kills . | . . Critical Parts Destroyed 1 | . 1 Critical Strikes 1 | . 1 Destroy 1 | . 1 Melee Attacks . | . . Impact . | . . Slashing . | . . Piercing . | . . Sneak Attacks . | . . Combat Hostiles . | . . Follow-up Attacks . | . . Damage Inflicted 864 | 257 607 Guns 556 | 190 366 Cannons 57 | . 57 Explosions 227 | 67 160 Melee . | . . Ramming 24 | . 24 Kinetic 186 | 68 118 Thermal 227 | 67 160 Explosive . | . . Electromagnetic 427 | 122 305 Impact . | . . Slashing . | . . Piercing . | . . Highest Corruption 19 | . 19 Average Corruption 3 | . 3 Corruption Purged . | . . Corruption Blocked . | . . Effects 1 | . 1 Data Loss (minor) 1 | . 1 Overload Shots . | . . Overflow Damage 20 | 4 16 Projectiles . | . . Explosions 20 | 4 16 Melee . | . . Knockbacks . | . . Impact . | . . Kinetic . | . . Secondary . | . . Self-Inflicted Damage 111 | 40 71 Shots 2 | 1 1 Rammed 2 | . 2 Targets Rammed 2 | . 2 Kicked . | . . Crushed . | . . Highest Temperature 82 | 40 82 Average Temperature 23 | 18 26 Received Heat Transfer 102 | . 102 Siege Activations . | . . Martial Activations . | . . Shielding Activations . | . . Robots Disrupted . | . . Combat Hostiles . | . . Robots Corrupted . | . . Combat Hostiles . | . . Parts Fried 1 | . 1 Impact Corruptions . | . . Robots Melted . | . . Combat Hostiles . | . . Parts Melted . | . . Heat Transferred 300 | 100 200 Parts Sabotaged . | . . Parts Stolen . | . . Parts Stripped . | . . Power Chain Reactions 3 | 2 1 Alert | -11 -10 ------- Run | Yrd Mat Maximum Alert Level . | . . Low Security (%) 100 | 100 100 Level 1 . | . . Level 2 . | . . Level 3 . | . . Level 4 . | . . Level 5 . | . . High Security . | . . Max Security . | . . Sterilizations 1 | . 1 Peak Influence 110 | 10 110 Initial . | . . Average 27 | 1 33 Influence Increases 232 | 25 207 Destroy 0b10 Robot/C 140 | . 140 Destroy 0b10 Robot/NC 45 | 25 20 Destroy Leader 32 | . 32 Successful Hack 12 | . 12 Destroy Structure 3 | . 3 Influence Decreases 232 | 25 207 Time Decay 232 | 25 207 Squads Dispatched 2 | . 2 Investigation 1 | . 1 Extermination . | . . Reinforcement 1 | . 1 Assault . | . . Garrison . | . . Intercept . | . . Searches Triggered . | . . Construction Impeded . | . . Haulers Reinforced . | . . Active Scanning Responses . | . . Cargo Convoy Interrupts . | . . Stealth | -11 -10 --------- Run | Yrd Mat Distress Signals . | . . Communications Jammed . | . . Distress Signals . | . . Times Spotted 17 | . 17 Peak Tracking Total 4 | . 4 Tactical Retreats . | . . Traps | -11 -10 ------- Run | Yrd Mat Traps Triggered 1 | . 1 Indirectly . | . . Trap Hack Attempts . | . . Triggered . | . . Disarmed . | . . Reprogrammed . | . . Reused . | . . Traps Extracted . | . . Installed . | . . Triggered . | . . Machines | -11 -10 ---------- Run | Yrd Mat Machines Disabled . | . . Max in Single Turn . | . . Machines Repaired . | . . Machines Dismantled . | . . Machines Sabotaged . | . . Overloaded Fab Kills . | . . Hacking | -11 -10 --------- Run | Yrd Mat Machines Accessed 3 | . 3 Terminals 3 | . 3 Fabricators . | . . Repair Stations . | . . Recycling Units . | . . Scanalyzers . | . . Garrison Access . | . . Total Hacks 7 | . 7 Successful 2 | . 2 Failed 5 | . 5 Catastrophic 1 | . 1 Database Lockouts . | . . Manual 7 | . 7 Terminals 7 | . 7 Fabricators . | . . Repair Stations . | . . Recycling Units . | . . Scanalyzers . | . . Garrison Access . | . . Terminal Hacks 2 | . 2 Hauler Manifests 1 | . 1 Registered Components 1 | . 1 Fabricator Hacks . | . . Repair Station Hacks . | . . Recycling Unit Hacks . | . . Scanalyzer . | . . Garrison Access Hacks . | . . Unauthorized Hacks . | . . Terminals . | . . Fabricators . | . . Repair Stations . | . . Recycling Units . | . . Scanalyzers . | . . Garrison Access . | . . Data Cores Recovered . | . . Used . | . . Hacking Detections 1 | . 1 Full Trace Events . | . . Feedback Events . | . . Feedback Blocked . | . . Robot Schematics Acquired . | . . Robots Built . | . . Authchips . | . . Time . | . . Total Robot Build Rating . | . . Part Schematics Acquired . | . . Parts Built . | . . Authchips . | . . Time . | . . Total Part Build Rating . | . . Part Studies Acquired . | . . Parts Repaired . | . . Time . | . . Parts Recycled . | . . Recycled Matter . | . . Retrieved Matter . | . . Retrieved Components . | . . Parts Scanalyzed . | . . Part Schematics Acquired . | . . Parts Damaged . | . . Bothacking | -11 -10 ------------ Run | Yrd Mat Used RIF Installer . | . . Robots Hacked . | . . Non-combat . | . . Combat . | . . Robot Hacks Applied . | . . Relay Couplers Released . | . . Fabnet Peak Effective % . | . . Robots Rewired . | . . Allies Hacked . | . . Hacks Repelled . | . . Allies | -11 -10 -------- Run | Yrd Mat Total Allies . | . . Largest Group . | . . Highest-Rated Group . | . . Highest-Rated Ally . | . . Total Orders . | . . Ally Attacks . | . . Total Damage . | . . Kills . | . . Allies Corrupted . | . . Allies Melted . | . . X0-1V1 Amusement Gains 12 | . 12 Average Entertainment 5 | . 5 Good Acts 7 | . 7 Bad Acts 9 | . 9 Intel | -11 -10 ------- Run | Yrd Mat Active Infowar (turns) 406 | 7 399 Seismic 406 | 7 399 Robot Analysis Total . | . . Derelict Logs Recovered . | . . Drone Launches . | . . Drone Recoveries . | . . Exploration | -11 -10 ------------- Run | Yrd Mat Turns Passed 808 | 148 660 Spaces Moved 322 | 57 265 Core 3 | 2 1 Treads 319 | 55 264 Legs . | . . Wheels . | . . Hover . | . . Flight . | . . Fastest Speed 50 | 50 160 Average Speed 171 | 156 174 Slowest Speed 300 | 160 300 Overloaded Moves . | . . Propulsion Burnouts . | . . Robots Hopped . | . . Potential Cave-ins . | . . Cave-ins Triggered . | . . Exploration Rate (%) 21 | 4 39 Regions Visited 1 Branch Regions . Pre-discovered Areas . | . . Known Exits Taken . | . . Unknown Exits Taken 1 | 1 . Scrap Searched . | . . Spaces Dug . | . . Terrain Destroyed 11 | 9 2 Melee . | . . Projectile . | . . AOE 11 | 9 2 Terrain Rammed 15 | . 15 Walls Destroyed . | . . Machines Disabled . | . . Actions | -11 -10 --------- Run | Yrd Mat Total 463 | 82 381 Wait 56 | . 56 Move 321 | 56 265 Hop . | . . Pick Up 9 | 1 8 Fast Attach 7 | 7 . Attach . | . . Detach . | . . Swap 6 | 1 5 Drop 1 | . 1 Fire 47 | 17 30 Melee . | . . Ram 14 | . 14 Kick . | . . Crush 2 | . 2 Escape Stasis . | . . Rewire . | . . Trap . | . . Miscellaneous . | . . Route ------- -11/Scrapyard -10/Materials (discovered 4 exits: *Mat x2 / [*Min] / [*Sub]) History --------- Turn | Location | Event 21 | -11/Scrapyard | Discovered new exit (range 15) 149 | -11/Scrapyard | Entered Materials 307 | -10/Materials | Build established: Mutant 329 | -10/Materials | Discovered new exit (range 9) 497 | -10/Materials | Discovered new exit (range 7) 542 | -10/Materials | Prayed at D.C.S.S. Altar Unit 564 | -10/Materials | Discovered new exit (range 16) 630 | -10/Materials | Melee accuracy permanently improved by X0-1V1 (+5%; -50 max core) 642 | -10/Materials | X0-1V1 mutated your Propulsion slot to Power slot 651 | -10/Materials | X0-1V1 vaporized surrounding terrain (radius 15) 664 | -10/Materials | X0-1V1 made a cryptic comment about sterilization and BL-4Z3 703 | -10/Materials | X0-1V1 activates XOMVISION 705 | -10/Materials | X0-1V1 put everyone to sleep 722 | -10/Materials | Identified exit to Materials 722 | -10/Materials | X0-1V1 revealed exit location to -9/Materials 748 | -10/Materials | X0-1V1 sent hostile S-10 Pest (x4) 766 | -10/Materials | Sterilization system engaged 766 | -10/Materials | Non-combat units ordered to evacuate 784 | -10/Materials | Core integrity fell below 50% 798 | -10/Materials | System corruption reached 10% 800 | -10/Materials | Core integrity fell below 20% 809 | -10/Materials | Core destroyed Last Messages --------------- 00794_ Destabilizing: System corrupted (+2). 00797_ Slammed into Wall. 00797_ Destabilizing: System corrupted (+1). 00799_ Slammed into Wall. 00799_ Destabilizing: Core damaged (-2). 00800_ System corrupted: Component data lost. 00802_ Slammed into Wall. 00802_ Destabilizing: System corrupted (+2). 00804_ Slammed into Wall. 00804_ Destabilizing: System corrupted (+1). 00804_ Destabilizing: Core damaged (-8). 00807_ S-10 Pest destroyed. 00807_ Slammed into Wall. 00807_ Broken X0-1V1's Piety Tracker destroyed. 00807_ X0-1V1 is mildly amused. 00807_ System corrupted by crushing effect (+4). 00807_ Destabilizing: System corrupted (+2). 00809_ Slammed into Wall. 00809_ Destabilizing: Core damaged (-6). 00809_ X0-1V1 guffaws! Map ----- +----------------------------------------------------+ | !# # #???????????##"!!!"### #????? | | # # #???????????#"" ""## #????? | | # ###########???????????# ## ###### | | ##### #?????????????????????# < ?# # # | | ????# #?????????????????????# ?# #[ # | | ????+ +?????????????????????# ??#%#*= # | | ????# #????????????[?????????# ??#%+%! # | | ????# #???????????????????????# #??#!#!= # | | ????# #???????????????????????# ####%# " # | | ????# #???????????????????????# %/= # T # | | ????# #???????????????????????# ! ![# " # | | ????# #???????????????????????# %! # # | | ????# #???????????????????????# %####+###### | | ????? ??????????????###+####### # # | | ??????????????????????#^ + # | | ??????????????????????# # # | | ??????????????????????# # # | | ??????????????????????# """ ^""" ########### | | ??????????????????????# """ """ ######????? | | ??????????????????????+ """ """ #????? | | ??????????????????????# #????? | | ??????????????????????+ #????? | | ?????????????????????##=[[ #######+## #????? | | ?????????????????????#=%[%% #?# #!= #????? | | ?????????????????????#[s]]*[#?# #% =#????? | | ?????????????????????#[[]@[[#?# +%* #????? | | ?????????????????????########?# #= #####? | | ??????????????????????????????# #r # #? | | ??????????????????????????????# # # ## | | ?????????????????????????????######### # <# | | ?????????????????????????????# ?# # #? | | ?????????|???????????????????# ?+ + #? | | ?????????????????????????????# # # #? | | ?????????????????????????????# # # !## | | ?????????????????????????????# + # X# | | ?????????????????????????????####""""# # ## | | ?????????????????????!??????###""""""# #""""# | | ???????????????????????????## " [[[# # | | ??????????????????????????## " [[ # # | | ?????????????????????????## " [[ # # | | ?????????????????????????# " # # | | ????????????????????????## " + " | | ????????????????????????# " # " | | ???????????????????????## """""""# " | | ????????????????????!??# "[ " | | ???????????????????????# "[] " | | ???????????????????????# "! " | | ?????????????????!?????# "!! " | | ??????????????????!????# " " | | ??????????????????!???# " ] " | +----------------------------------------------------+ Best States ------------- Heat Dissipation 25 Energy Generation 10 Energy Capacity 125 Matter Stores 300 Matter Capacity 800 Sight Range 16 Terrain Scan Density 10 Evasion (%) 40 Recoil Reduction 2 Item Schematics ----------------- None Robot Schematics ------------------ None Fabricated ------------ Nothing Repaired ---------- Nothing Studied --------- None Alien Tech Used ----------------- None Achievements -------------- None Challenges ------------ None Game ------ Seed ProjectileRagnarokGun Manual? 0 Play Time 00:08:50 Cumulative 193.1 hours Start 2026.08.27 @ 11:38:41 End 2026.08.27 @ 11:45:16 Sessions 1 Manual Loads 0 Difficulty Rogue Special Mode None Game No. 304 Rogue 304 Adventurer 0 Explorer 0 Win Type - Total 1 Types 1/0/0/0/0/0/0/0/0/0 Lore% 65 Gallery% 60 Achievement% 46 Wizard Run 0 Options --------- Layout 1 ASCII 0 Keyboard 1 Movement Arrows Keybinds 0 Fullscreen 1 Font 24/Smallcaps Map View 50x35 Zoom Use 0% Tactical HUD 1 Map Filters NONE Filters NONE Steam 1 RUN: 96ec8e25-10db-4cdc-8f91-57b746a4352e